bitfinex-derivatives/quotes_ETHF0:USTF0_20220103
["timestamp","ask_amount","ask_price","bid_price","bid_amount"]
[1641233468185,1.18205564,3752.3,3751.9,1.49967384]
[1641233469386,1.18205564,3752.3,3752.0,1.49967384]
[1641233469584,0.229991,3752.2,3752.0,1.49967384]
[1641233470986,0.229991,3752.2,3751.7,3.08574506]
[1641233470987,0.36560548,3752.1,3751.9,1.49967384]
[1641233471387,0.229991,3752.0,3751.9,1.49967384]
[1641233472088,0.36560548,3752.1,3751.9,1.49967384]
[1641233472289,0.229991,3752.0,3751.9,1.49967384]
[1641233472489,1.18205564,3752.3,3751.9,1.49967384]
[1641233475193,0.128157,3752.5,3751.7,3.08574506]
[1641233475194,1.18205564,3752.2,3751.8,1.49967384]
[1641233475793,1.54769873,3752.2,3751.8,1.49967384]
[1641233477398,1.18205564,3752.1,3751.8,1.49967384]
[1641233478398,0.229991,3752.0,3751.7,4.5854189]
[1641233479398,0.229991,3752.0,3751.8,1.49967384]
[1641233481401,1.18205564,3752.2,3751.8,1.49967384]
[1641233481899,1.18205564,3752.1,3751.8,1.49967384]
[1641233482100,0.229991,3752.0,3751.8,1.49967384]
[1641233483202,0.229991,3752.0,3751.7,4.5854189]
[1641233483803,0.36573145,3751.9,3751.7,4.5854189]
[1641233485008,0.229991,3751.8,3751.7,4.5854189]
[1641233485306,0.36573145,3751.9,3751.7,4.5854189]
[1641233485905,1.18205564,3752.1,3751.7,4.5854189]
[1641233486705,1.18205564,3752.1,3751.7,0.65330817]
[1641233487709,1.18205564,3752.0,3751.7,0.81353869]
[1641233488007,0.229991,3751.9,3751.7,0.81353869]
[1641233488806,4.00958,3751.8,3751.7,0.81353869]
[1641233489707,4.40500933,3751.8,3751.7,0.81353869]
[1641233494813,5.59468203,3751.8,3751.7,0.81353869]
[1641233496820,3.58989203,3751.8,3751.7,0.81353869]
[1641233497222,3.58989203,3751.8,3751.7,2.31695724]
[1641233497424,2.63021033,3751.8,3751.7,2.31695724]
[1641233497625,2.40021933,3751.8,3751.7,2.31695724]
[1641233498823,2.00479,3751.8,3751.7,2.31695724]
[1641233499624,2.234781,3751.8,3751.7,2.31695724]
[1641233499825,2.00479,3751.8,3751.7,2.31695724]
[1641233500025,2.40085681,3751.8,3751.7,0.81353869]
[1641233500726,0.39606681,3751.8,3751.7,0.81353869]
[1641233501327,1.1896727,3752.0,3751.7,0.81353869]
[1641233501527,1.1896727,3752.1,3751.7,0.81353869]
[1641233502530,1.1896727,3752.2,3751.8,1.50326667]
[1641233504029,1.1896727,3752.2,3751.8,3.00326667]
[1641233504930,1.1896727,3752.2,3751.8,5.00805667]
[1641233505131,1.1896727,3752.2,3751.8,3.50805667]
[1641233505333,0.52413437,3752.3,3752.1,1.50326667]
[1641233505531,0.39597737,3752.3,3752.1,1.50326667]
[1641233506132,0.229991,3752.2,3752.1,1.50326667]
[1641233506332,0.782391,3752.2,3752.1,1.50326667]
[1641233507134,0.782391,3752.2,3752.1,2.56784361]
[1641233507334,0.910548,3752.2,3752.1,2.56784361]
[1641233507837,0.229991,3752.2,3752.1,2.56784361]
[1641233508134,0.39597737,3752.3,3752.1,2.56784361]
[1641233508339,0.39597737,3752.2,3752.1,3.24634361]
[1641233508540,0.39597737,3752.2,3752.1,1.74307694]
[1641233509337,0.39597737,3752.3,3752.1,4.57485298]
[1641233510138,1.18969974,3752.5,3752.1,4.57485298]
[1641233510340,1.18969974,3752.5,3752.4,1.5]
[1641233511041,1.18969974,3752.5,3752.1,2.39635298]
[1641233511241,1.58720752,3752.9,3752.1,2.39635298]
[1641233511843,1.18969974,3752.9,3752.6,1.50297904]
[1641233512042,1.18969974,3752.9,3752.7,0.81411356]
[1641233512239,1.41969074,3752.9,3752.7,0.81411356]
[1641233512641,1.18969974,3752.9,3752.7,0.81411356]
[1641233515147,1.41969074,3752.9,3752.7,0.81411356]
[1641233515447,1.18969974,3753.0,3752.7,0.81411356]
[1641233516249,0.229991,3752.9,3752.7,0.81411356]
[1641233516448,0.229991,3752.9,3752.7,2.3170926]
[1641233517252,0.229991,3752.9,3752.7,0.81411356]
[1641233518656,1.41969074,3752.9,3752.7,0.81411356]
[1641233519357,1.93459074,3752.9,3752.7,0.81411356]
[1641233520358,0.744891,3752.9,3752.7,0.81411356]
[1641233521159,0.229991,3752.9,3752.7,0.81411356]
[1641233521563,1.48723126,3752.8,3752.7,1.71598458]
[1641233524568,1.71722226,3752.9,3752.7,0.81411356]
[1641233525769,1.48723126,3752.8,3752.7,1.71598276]
[1641233526774,1.71722226,3752.8,3752.7,1.71598276]
[1641233530575,1.48723126,3752.8,3752.7,1.71598276]
[1641233531577,1.87863814,3752.8,3752.7,1.71598276]
[1641233532078,2.10862914,3752.8,3752.7,1.71598276]
[1641233533177,1.87863814,3752.8,3752.7,1.71598276]
[1641233533677,2.10862914,3752.8,3752.7,1.71598276]
[1641233534278,0.62139788,3752.8,3752.7,0.81411356]
[1641233537486,0.39140688,3752.8,3752.7,0.81411356]
[1641233538484,0.39140688,3752.9,3752.7,2.31411356]
[1641233538683,1.78128059,3753.3,3752.7,2.31411356]
[1641233538883,1.78128059,3753.3,3753.2,1.5]
[1641233539085,2.96880098,3753.8,3753.2,5.51550506]
[1641233539286,4.45320147,3755.0,3753.2,5.51550506]
[1641233539287,2.00479,3754.6,3753.6,1.5]
[1641233539485,2.00479,3754.6,3753.8,1.5]
[1641233540090,5.71579123,3754.6,3753.8,1.5]
[1641233540289,2.96622447,3754.3,3754.0,1.5]
[1641233540489,2.96622447,3754.3,3753.9,0.90605143]
[1641233541189,2.96622447,3754.3,3753.9,2.91084143]
[1641233541492,5.71579123,3754.6,3753.9,2.91084143]
[1641233541892,2.00479,3754.6,3753.9,2.91084143]
[1641233542491,2.00479,3754.6,3754.3,1.5]
[1641233542990,2.00479,3754.6,3754.5,1.33089868]
[1641233543192,2.00479,3754.6,3754.5,3.50760024]
[1641233543991,2.00479,3754.6,3754.5,2.17670156]
[1641233543992,2.234781,3754.6,3754.5,2.17670156]
[1641233544192,2.234781,3754.6,3754.5,1.27600097]
[1641233544691,2.00479,3754.6,3754.5,1.27600097]
[1641233546695,2.234781,3754.6,3754.5,1.27600097]
[1641233546895,2.00479,3754.6,3754.5,1.27600097]
[1641233547896,2.00479,3755.1,3754.5,3.34810142]
[1641233548096,2.00479,3755.1,3754.9,1.5]
[1641233548297,2.00479,3755.1,3755.0,1.33070209]
[1641233548697,3.48988677,3755.1,3755.0,1.33070209]
[1641233549900,3.71100123,3756.2,3755.0,1.33070209]
[1641233550105,4.45757924,3755.9,3755.8,1.5]
[1641233550304,1.27052967,3755.9,3755.8,2.1344]
[1641233550499,2.2312945,3756.5,3755.8,2.1344]
[1641233550701,2.97004957,3756.8,3756.3,1.5]
[1641233550903,3.71100123,3757.0,3756.7,1.5]
[1641233551100,3.71100123,3757.0,3756.9,2.82992695]
[1641233551501,63.1494,3758.4,3756.9,2.82992695]
[1641233551703,3.72281092,3757.9,3757.2,1.5]
[1641233551900,2.97824874,3757.6,3757.5,1.5]
[1641233552202,2.97824874,3757.6,3757.5,2.109]
[1641233552404,3.72281092,3757.9,3757.5,2.109]
[1641233552603,4.09509201,3758.2,3757.8,1.5]
[1641233552802,4.45320147,3758.7,3757.8,1.5]
[1641233553001,4.45320147,3758.7,3757.9,0.96172079]
[1641233553201,4.45320147,3758.7,3758.2,2.00479]
[1641233553501,1.2060357,3758.8,3758.2,2.00479]
[1641233554402,1.3341927,3758.8,3758.2,2.00479]
[1641233554606,1.5,3758.6,3758.2,2.00479]
[1641233554804,2.2532,3758.6,3757.9,0.96172079]
[1641233555004,0.7532,3758.6,3757.9,0.96172079]
[1641233555204,0.7532,3758.6,3758.2,0.89986669]
[1641233555205,2.00479,3758.4,3758.2,0.89986669]
[1641233555406,0.229991,3758.3,3758.2,0.89986669]
[1641233555603,2.00479,3758.4,3758.2,0.89986669]
[1641233556205,0.229991,3758.3,3758.2,0.89986669]
[1641233556504,2.00479,3758.4,3758.2,0.89986669]
[1641233556705,2.00479,3758.4,3757.9,1.86158748]
[1641233557705,1.19298589,3758.0,3757.9,1.86158748]
[1641233558108,2.54343324,3758.6,3757.9,3.36158748]
[1641233558308,2.00479,3759.0,3758.5,1.5]
[1641233558506,2.00479,3759.0,3758.7,1.5]
[1641233558507,2.23684767,3758.9,3758.7,1.5]
[1641233558705,2.23684767,3758.9,3758.1,1.5]
[1641233559106,2.23684767,3758.9,3757.9,1.86158748]
[1641233559307,2.23684767,3758.9,3758.8,2.00479]
[1641233560108,0.128157,3759.1,3758.8,2.00479]
[1641233560308,2.56509,3759.8,3758.8,2.00479]
[1641233560510,2.00479,3759.8,3758.8,2.00479]
[1641233560709,0.15009892,3759.7,3758.9,0.67710728]
[1641233561410,1.5,3759.5,3758.9,0.67710728]
[1641233561812,1.628157,3759.4,3758.9,0.67710728]
[1641233562011,1.77825592,3759.4,3758.9,0.67710728]
[1641233562413,0.15009892,3759.3,3758.9,0.67710728]
[1641233563612,1.5,3759.0,3756.8,29.9556]
[1641233563815,1.5,3758.8,3753.5,4.51052849]
[1641233564013,1.5,3758.8,3756.6,1.5]
[1641233564816,1.5,3758.8,3756.7,31.49043104]
[1641233565518,2.00479,3758.4,3757.6,2.00479]
[1641233565815,0.128157,3758.3,3757.7,1.12343476]
[1641233566917,2.00479,3758.4,3757.7,1.12343476]
[1641233567720,2.00479,3758.8,3757.8,1.5]
[1641233567920,2.1769,3759.9,3757.8,1.5]
[1641233568121,2.1769,3759.9,3757.7,1.12343476]
[1641233568320,2.1769,3759.9,3758.5,1.80131063]
[1641233568522,0.15010547,3759.7,3758.6,1.22768717]
[1641233568919,0.15010547,3759.8,3757.9,29.8861]
[1641233569119,1.5,3758.9,3757.9,29.8861]
[1641233569319,1.5,3758.9,3757.6,2.56259]
[1641233569320,0.8053,3758.9,3758.4,2.00479]
[1641233569520,0.128157,3758.8,3758.4,2.00479]
[1641233570723,0.128157,3758.8,3758.5,0.68105972]
[1641233570920,0.229991,3758.7,3757.6,2.00479]
[1641233571123,0.229991,3758.7,3757.8,1.32976071]
[1641233571320,2.234781,3758.7,3757.8,1.32976071]
[1641233571521,3.734781,3758.7,3757.9,1.14150265]
[1641233571722,1.5,3758.2,3757.9,1.14150265]
[1641233571921,0.229991,3758.1,3757.9,1.14150265]
[1641233572121,1.628157,3758.0,3755.4,20.53113698]
[1641233572322,1.5,3757.7,3756.2,1.33018523]
[1641233572521,1.5,3757.7,3756.2,0.78507826]
[1641233572923,1.5,3757.7,3756.6,1.33018523]
[1641233573325,2.00479,3757.4,3756.6,3.33497523]
[1641233574526,2.00479,3757.4,3756.6,2.00479]
[1641233574725,2.00479,3757.4,3756.2,2.78986826]
[1641233574726,1.5,3756.8,3756.2,2.78986826]
[1641233574925,1.5,3756.3,3756.2,0.78507826]
[1641233575139,1.729991,3756.3,3756.2,0.78507826]
[1641233575325,3.734781,3756.3,3756.2,0.78507826]
[1641233575626,3.734781,3756.3,3755.2,2.00479]
[1641233576228,1.5,3756.0,3755.2,2.00479]
[1641233576427,0.7636,3756.0,3755.2,2.00479]
[1641233576726,2.2636,3756.0,3755.2,2.96035947]
[1641233576927,0.128157,3755.9,3755.2,2.96035947]
[1641233577131,1.5,3755.6,3755.2,0.95556947]
[1641233577327,2.00479,3755.3,3755.2,0.95556947]
[1641233577526,2.234781,3755.3,3755.2,0.95556947]
[1641233580229,3.734781,3755.3,3755.2,0.95556947]
[1641233580434,2.234781,3755.3,3755.2,0.95556947]
[1641233581332,3.734781,3755.3,3755.2,0.95556947]
[1641233581531,2.234781,3755.3,3755.2,0.95556947]
[1641233581731,3.734781,3755.3,3755.2,0.95556947]
[1641233582030,3.734781,3755.3,3754.4,2.00479]
[1641233582231,1.5,3754.6,3754.5,1.13220607]
[1641233582532,1.729991,3754.6,3754.5,1.13220607]
[1641233582929,0.229991,3754.6,3754.5,1.13220607]
[1641233583434,2.00479,3754.9,3754.8,0.41925763]
[1641233583731,2.00479,3754.9,3754.5,1.26036307]
[1641233583932,2.00479,3754.9,3754.6,1.5]
[1641233584133,2.00479,3754.9,3754.7,0.229991]
[1641233584331,2.00479,3754.9,3754.8,1.5]
[1641233584533,2.00479,3754.9,3754.8,2.11]
[1641233585332,0.202024,3754.9,3754.8,2.339991]
[1641233586433,0.278633,3754.9,3754.8,0.61]
[1641233586835,0.202024,3754.9,3754.8,0.839991]
[1641233587233,0.202024,3754.9,3754.8,0.61]
[1641233587435,0.278633,3754.9,3754.8,0.61]
[1641233587635,0.202024,3754.9,3754.5,1.26036307]
[1641233588838,0.202024,3754.9,3754.7,1.5]
[1641233589038,0.202024,3754.9,3754.8,0.229991]
[1641233589639,0.278633,3754.9,3754.5,1.26036307]
[1641233590540,0.202024,3754.9,3754.7,1.5]
[1641233590840,2.00479,3755.3,3754.8,0.229991]
[1641233591046,1.33100674,3756.8,3755.2,1.5]
[1641233591242,1.33100674,3756.8,3754.9,1.5]
[1641233591441,1.33100674,3756.8,3754.8,0.832]
[1641233591642,2.00479,3756.2,3755.4,2.00479]
[1641233591841,2.00479,3756.2,3755.5,1.628157]
[1641233592442,31.13476247,3756.6,3755.5,0.128157]
[1641233592643,31.13476247,3756.6,3755.9,1.5]
[1641233592842,0.15021862,3756.5,3755.9,2.0579]
[1641233593243,0.15021862,3756.5,3755.9,0.5579]
[1641233593646,2.15500862,3756.5,3755.9,0.5579]
[1641233594044,2.00479,3756.5,3755.9,2.0579]
[1641233595143,2.00479,3756.5,3755.9,0.5579]
[1641233595545,2.00479,3756.5,3756.1,1.5]
[1641233595746,31.13476247,3756.6,3756.2,1.15770431]
[1641233595945,31.13476247,3756.6,3756.3,1.628157]
[1641233596149,2.00479,3756.9,3756.5,1.5]
[1641233596347,2.00479,3757.4,3756.8,1.5]
[1641233596546,2.00479,3757.4,3756.8,2.0641]
[1641233596747,32.60190582,3758.3,3757.3,1.5]
[1641233597046,33.0389,3758.2,3757.4,1.5]
[1641233597348,0.1281,3758.1,3757.4,1.5]
[1641233597546,0.1281,3758.1,3757.0,1.33004369]
[1641233597745,2.00479,3757.9,3757.8,1.5]
[1641233597946,2.081399,3757.9,3757.8,0.6602]
[1641233598148,2.15495774,3757.9,3757.8,0.6602]
[1641233598846,2.15495774,3757.9,3757.8,1.77127914]
[1641233599647,2.00479,3757.9,3757.8,1.77127914]
[1641233600246,2.081399,3757.9,3757.8,1.54128814]
[1641233600447,2.00479,3757.9,3757.8,1.77127914]
[1641233601049,2.00479,3757.9,3757.8,1.54128814]
[1641233601450,2.00479,3757.9,3757.8,1.77127914]
[1641233601850,2.00479,3758.2,3757.8,3.27127914]
[1641233604052,2.00479,3758.2,3757.8,1.77127914]
[1641233604352,2.00479,3758.2,3757.8,1.54128814]
[1641233605553,2.00479,3758.2,3757.8,0.88108814]
[1641233607556,0.1281,3758.1,3757.8,0.88108814]
[1641233607757,0.076609,3758.0,3757.8,0.88108814]
[1641233608759,3.48394575,3758.9,3757.9,1.5]
[1641233608961,2.00479,3758.9,3758.6,1.5]
[1641233609159,0.15013978,3758.8,3757.9,2.12952181]
[1641233609359,0.15013978,3758.8,3758.7,1.5]
[1641233609560,0.15013978,3758.8,3758.7,2.352491]
[1641233609758,0.15013978,3758.8,3758.7,5.44257867]
[1641233610059,2.00479,3759.6,3758.7,6.94257867]
[1641233610259,2.00479,3759.6,3758.7,5.44257867]
[1641233610459,2.00479,3759.6,3758.9,1.32935413]
[1641233610660,2.00479,3759.6,3759.5,1.5]
[1641233610859,2.00479,3759.6,3759.5,1.729991]
[1641233611862,2.00479,3759.6,3759.5,2.91703176]
[1641233613864,2.00479,3760.0,3759.5,2.91703176]
[1641233614065,2.00479,3760.0,3759.5,1.41703176]
[1641233614263,2.00479,3760.0,3759.9,1.5]
[1641233614465,2.081399,3760.0,3759.6,1.5]
[1641233614864,2.753299,3760.0,3759.5,1.18704076]
[1641233618165,2.753299,3760.0,3759.5,1.31519776]
[1641233618366,2.753299,3760.0,3759.7,1.5]
[1641233618967,2.753299,3760.0,3759.5,1.31519776]
[1641233619170,2.753299,3760.0,3759.5,1.18704076]
[1641233620071,2.753299,3760.0,3759.5,2.68704076]
[1641233620670,2.753299,3760.0,3759.5,1.18704076]
[1641233620869,0.0937964,3759.9,3759.5,1.18704076]
[1641233621072,1.73810709,3759.7,3759.5,2.68704076]
[1641233621273,0.076609,3759.6,3759.5,2.68704076]
[1641233622073,0.076609,3759.6,3759.5,1.18704076]
[1641233622273,1.81471609,3759.6,3759.5,1.18704076]
[1641233623073,1.90851249,3759.6,3759.5,2.68704076]
[1641233623273,1.83190349,3759.6,3759.5,2.91703176]
[1641233623473,1.90851249,3759.6,3759.5,2.68704076]
[1641233624276,1.90851249,3759.6,3759.5,3.56420693]
[1641233624576,0.1704054,3759.6,3759.5,3.56420693]
[1641233625176,0.1704054,3759.6,3759.5,2.06420693]
[1641233625777,0.1704054,3759.6,3758.9,1.46194361]
[1641233625978,2.00479,3759.0,3758.9,1.46194361]
[1641233626178,3.042199,3759.0,3758.9,1.46194361]
[1641233627683,3.1359954,3759.0,3758.3,1.46194361]
[1641233627982,3.1359954,3759.0,3758.5,1.5]
[1641233628584,1.19408222,3758.6,3758.5,1.5]
[1641233628983,1.27069122,3758.6,3758.5,1.5]
[1641233629387,1.19408222,3758.6,3758.5,1.729991]
[1641233629585,1.19408222,3758.6,3758.5,1.858148]
[1641233629786,2.13289,3759.0,3758.5,1.858148]
[1641233630186,2.13289,3759.0,3758.5,1.5]
[1641233633590,2.13289,3759.0,3758.5,0.128157]
[1641233636102,2.13289,3759.0,3758.4,0.92264594]
[1641233641610,2.13289,3759.0,3758.4,2.42264594]
[1641233642111,2.13289,3759.0,3758.4,0.92264594]
[1641233643312,13.56289,3759.0,3758.4,0.92264594]
[1641233643611,1.96176967,3758.8,3758.4,0.92264594]
[1641233644514,1.96176967,3758.8,3758.7,1.5]
[1641233644715,2.13289,3759.0,3758.7,2.365491]
[1641233644917,0.076609,3758.8,3758.7,0.6355]
[1641233645115,2.13289,3759.0,3758.7,0.6355]
[1641233645314,2.13289,3759.0,3758.9,1.5]
[1641233645716,2.209499,3759.0,3758.7,0.6355]
[1641233645916,2.209499,3759.0,3758.6,1.5]
[1641233646114,2.209499,3759.0,3758.4,2.42264594]
[1641233646316,2.209499,3759.0,3758.9,1.5]
[1641233646916,2.209499,3759.0,3758.4,0.92264594]
[1641233647318,2.209499,3759.0,3758.5,1.5]
[1641233647921,2.209499,3759.0,3758.4,0.92264594]
[1641233650522,1.83192287,3758.9,3758.6,0.88570186]
[1641233651023,1.83192287,3758.9,3758.7,0.229991]
[1641233651224,1.83192287,3758.9,3758.6,0.88570186]
[1641233651423,0.076609,3758.8,3758.6,0.88570186]
[1641233651622,1.83192287,3758.9,3758.7,1.729991]
[1641233651823,0.09381578,3758.9,3758.7,1.729991]
[1641233652223,0.09381578,3758.9,3758.7,1.5]
[1641233652423,0.076609,3758.8,3758.7,1.5]
[1641233652625,0.076609,3758.8,3758.7,2.38570186]
[1641233652823,0.09381578,3758.9,3758.7,2.38570186]
[1641233653824,3.74289709,3759.0,3758.8,0.229991]
[1641233654024,2.00479,3759.0,3758.8,0.229991]
[1641233654425,0.076609,3758.9,3758.8,0.90057333]
[1641233654625,2.00479,3759.0,3758.8,1.13056433]
[1641233655829,2.00479,3759.0,3758.8,0.90057333]
[1641233656028,2.00479,3759.0,3758.9,1.5]
[1641233656429,2.00479,3759.0,3758.8,1.13056433]
[1641233656729,2.00479,3759.0,3758.8,0.90057333]
[1641233657431,2.00479,3759.0,3758.9,1.5]
[1641233657832,2.00479,3759.0,3758.9,1.729991]
[1641233658030,2.081399,3759.0,3758.4,2.42264594]
[1641233658330,2.081399,3759.0,3758.7,0.90016633]
[1641233659231,2.081399,3759.0,3758.7,2.40016633]
[1641233659630,2.081399,3759.0,3758.7,0.90016633]
[1641233659830,2.081399,3759.0,3758.8,0.229991]
[1641233660030,2.081399,3759.0,3758.7,0.90016633]
[1641233661032,2.081399,3759.0,3758.8,0.229991]
[1641233661433,2.081399,3759.0,3758.7,0.90016633]
[1641233662932,2.081399,3759.0,3758.8,1.5]
[1641233663432,2.081399,3759.0,3758.7,0.90016633]
[1641233663632,2.081399,3759.0,3758.8,1.5]
[1641233663834,0.076609,3758.9,3758.7,0.90016633]
[1641233664236,0.076609,3758.9,3758.4,0.92264594]
[1641233664237,2.00479,3759.0,3758.6,0.90016633]
[1641233664437,2.00479,3759.0,3758.8,1.5]
[1641233664636,2.00479,3759.0,3758.6,0.90016633]
[1641233665438,2.00479,3759.0,3758.7,0.90016633]
[1641233665642,1.91258602,3759.2,3758.7,0.90016633]
[1641233666239,1.91258602,3759.2,3758.8,1.5]
[1641233666439,1.91258602,3759.2,3758.7,0.90016633]
[1641233666739,1.48756346,3759.0,3758.7,0.90016633]
[1641233666940,0.076609,3758.9,3758.8,1.5]
[1641233667542,1.48756346,3759.0,3758.8,1.729991]
[1641233667741,0.076609,3758.9,3758.8,1.5]
[1641233667942,0.076609,3758.9,3758.7,0.90016633]
[1641233668348,0.076609,3758.9,3758.8,0.90016633]
[1641233668742,2.081399,3758.9,3758.8,0.90016633]
[1641233668945,13.511399,3758.9,3758.8,0.90016633]
[1641233669242,4.42095336,3758.7,3758.4,0.92264594]
[1641233669442,22.32102058,3758.5,3758.4,0.92264594]
[1641233669643,23.05802058,3758.5,3758.2,1.50027721]
[1641233670245,0.076609,3758.4,3757.9,3.00027721]
[1641233671046,0.076609,3758.4,3758.0,1.5]
[1641233671245,0.076609,3758.4,3758.0,1.28361916]
[1641233671945,0.09381542,3758.3,3758.0,1.28361916]
[1641233672143,0.076609,3758.2,3758.0,1.28361916]
[1641233672946,1.18874731,3758.1,3758.0,1.28361916]
[1641233674645,1.18874731,3758.1,3758.0,3.01361016]
[1641233674846,1.35917173,3758.1,3758.0,2.78361916]
[1641233675046,1.35917173,3758.1,3758.0,1.28361916]
[1641233675246,1.28256273,3758.1,3758.0,1.28361916]
[1641233675855,0.17042442,3758.1,3758.0,1.28361916]
[1641233677150,0.17042442,3758.1,3757.4,2.25084788]
[1641233677449,1.20511331,3758.0,3757.4,2.25084788]
[1641233678351,1.20511331,3758.0,3757.4,1.50027721]
[1641233678551,1.29892873,3758.0,3757.2,1.02305565]
[1641233678751,2.00479,3757.5,3757.2,1.02305565]
[1641233678950,0.076609,3757.4,3757.2,1.02305565]
[1641233679151,0.1281,3757.3,3757.2,1.02305565]
[1641233680053,0.1281,3757.3,3757.0,1.50027721]
[1641233680455,0.076609,3757.2,3756.8,1.62843421]
[1641233680856,0.076609,3757.2,3756.8,1.50027721]
[1641233681955,0.076609,3757.2,3756.9,1.5]
[1641233682754,0.076609,3757.2,3757.1,1.5]
[1641233683457,0.1281,3757.3,3757.1,1.3805987]
[1641233683655,0.076609,3757.2,3757.1,1.1506077]
[1641233686358,0.1281,3757.3,3757.1,1.3805987]
[1641233686558,0.076609,3757.2,3757.1,1.1506077]
[1641233687059,0.1281,3757.3,3757.1,1.1506077]
[1641233687460,0.076609,3757.2,3757.1,1.1506077]
[1641233688064,0.1281,3757.3,3757.1,1.1506077]
[1641233688264,0.076609,3757.2,3757.1,1.1506077]
[1641233688664,0.1281,3757.3,3757.1,2.8805987]
[1641233688866,0.09383935,3757.2,3757.1,2.8805987]
[1641233689064,0.09383935,3757.2,3757.1,2.6506077]
[1641233689264,0.17044835,3757.2,3757.1,2.6506077]
[1641233689664,0.17044835,3757.2,3757.1,1.1506077]
[1641233690366,0.076609,3757.2,3757.1,2.6506077]
[1641233690566,2.00479,3757.5,3757.1,2.8805987]
[1641233690968,2.00479,3757.5,3757.1,1.1506077]
[1641233691169,3.19353731,3757.5,3757.4,1.5]
[1641233691467,3.27014631,3757.5,3757.4,1.5]
[1641233691668,3.27014631,3757.5,3757.1,1.1506077]
[1641233692268,3.27014631,3757.5,3757.4,1.5]
[1641233692473,3.36398248,3757.5,3757.4,2.39970748]
[1641233692670,2.17523517,3757.5,3757.4,2.39970748]
[1641233693972,2.17523517,3757.5,3757.2,0.89970748]
[1641233694872,0.09383617,3757.4,3757.2,0.89970748]
[1641233695073,0.076609,3757.3,3757.2,0.89970748]
[1641233695773,0.17044517,3757.3,3757.2,0.89970748]
[1641233696373,0.17044517,3757.3,3757.1,1.1506077]
[1641233697777,0.076609,3757.3,3757.1,1.1506077]
[1641233698876,0.076609,3757.3,3757.1,2.6506077]
[1641233699276,0.076609,3757.3,3757.1,1.1506077]
[1641233701282,0.076609,3757.3,3757.2,1.5]
[1641233702079,0.076609,3757.3,3757.1,1.1506077]
[1641233704383,0.076609,3757.3,3757.2,1.5]
[1641233704783,2.11867041,3757.5,3757.2,1.729991]
[1641233704984,0.076609,3757.4,3757.2,1.5]
[1641233705187,2.00479,3757.7,3757.2,1.5]
[1641233705385,2.00479,3757.7,3757.6,1.5]
[1641233705587,2.00479,3757.7,3757.6,1.729991]
[1641233706587,1.18701492,3758.1,3757.6,1.729991]
[1641233706884,22.32102058,3758.5,3758.0,1.5]
[1641233706885,1.18701492,3758.5,3758.0,1.5]
[1641233707087,3.19180492,3758.5,3758.1,0.90499883]
[1641233707287,3.19180492,3758.5,3758.3,1.5]
[1641233707487,0.076609,3758.4,3758.3,1.5]
[1641233710788,2.00479,3758.5,3758.3,1.729991]
[1641233710989,2.00479,3758.5,3758.3,1.5]
[1641233711188,0.076609,3758.4,3758.3,1.5]
[1641233713196,0.621609,3758.4,3758.1,0.90499883]
[1641233713798,0.621609,3758.4,3757.6,1.5]
[1641233713998,3.55308756,3758.1,3757.4,1.5]
[1641233714597,3.55308756,3758.1,3757.6,1.5]
[1641233714797,2.6532438,3757.9,3757.6,1.5]
[1641233715097,2.209499,3757.8,3757.6,1.5]
[1641233716199,2.209499,3757.8,3757.5,0.99939937]
[1641233716399,2.209499,3757.8,3757.7,1.5]
[1641233716602,2.209499,3757.8,3757.5,0.99939937]
[1641233716803,2.209499,3757.8,3757.7,1.5]
[1641233717001,2.00479,3757.8,3757.7,1.5]
[1641233717403,2.081399,3757.8,3757.7,1.5]
[1641233718505,2.081399,3757.8,3757.7,1.729991]
[1641233718705,2.00479,3757.8,3757.7,1.729991]
[1641233720207,2.081399,3757.8,3757.7,1.5]
[1641233720409,2.00479,3757.8,3757.7,1.5]
[1641233721109,29.72149273,3758.5,3757.7,1.5]
[1641233721308,0.1281,3758.4,3757.5,1.12755637]
[1641233721507,29.72149273,3758.5,3758.3,1.5]
[1641233721908,29.72149273,3758.5,3758.4,1.09703295]
[1641233722507,29.79810173,3758.5,3758.4,1.09703295]
[1641233723409,29.72149273,3758.5,3758.4,2.10582395]
[1641233727812,30.40300173,3758.5,3758.4,1.09703295]
[1641233730415,30.40300173,3758.5,3758.4,2.59703295]
[1641233733024,30.40300173,3758.5,3758.4,1.09703295]
[1641233733825,30.40300173,3758.5,3757.8,1.5]
[1641233734624,30.40300173,3758.5,3757.7,2.00479]
[1641233734625,30.40300173,3758.5,3757.9,1.0847203]
[1641233734826,30.40300173,3758.5,3758.2,1.5]
[1641233735828,30.40300173,3758.5,3757.9,1.0847203]
[1641233736027,30.40300173,3758.5,3758.2,1.5]
[1641233736426,11.43,3758.4,3757.9,1.0847203]
[1641233736626,1.22938325,3758.1,3757.3,2.00479]
[1641233737227,0.79839498,3757.6,3757.3,2.00479]
[1641233737427,0.076609,3757.5,3757.3,2.00479]
[1641233738326,0.076609,3757.5,3757.1,1.5]
[1641233739328,2.00479,3757.2,3757.0,0.79358381]
[1641233739531,2.00479,3757.2,3757.1,1.729991]
[1641233739728,2.081399,3757.2,3757.1,1.5]
[1641233741034,2.00479,3757.2,3757.1,1.729991]
[1641233741633,2.00479,3757.2,3757.1,1.858148]
[1641233742035,2.081399,3757.2,3757.1,1.628157]
[1641233743133,2.00479,3757.2,3757.1,1.628157]
[1641233743334,2.00479,3757.2,3757.1,1.858148]
[1641233745938,2.081399,3757.2,3757.1,1.628157]
[1641233746238,2.081399,3757.2,3757.1,2.52253211]
[1641233747241,2.00479,3757.2,3757.1,1.858148]
[1641233748340,2.081399,3757.2,3757.1,1.628157]
[1641233748743,2.00479,3757.2,3757.1,1.858148]
[1641233749143,2.00479,3757.2,3757.1,1.628157]
[1641233749342,2.00479,3757.2,3757.1,2.52253211]
[1641233749743,2.00479,3757.2,3757.1,2.75252311]
[1641233750344,2.00479,3757.2,3757.1,1.858148]
[1641233753448,2.081399,3757.2,3757.1,1.858148]
[1641233753648,2.00479,3757.2,3757.1,1.858148]
[1641233756453,2.081399,3757.2,3757.1,1.5]
[1641233756654,2.756499,3757.2,3757.0,0.79358381]